[Event "Early-Titled-Tuesday-Blitz-February-06-2024"]
[Site "Chess.com"]
[Date "2024.02.06"]
[Round "3"]
[White "GP9isback23"]
[Black "evgchess5"]
[Result "0-1"]
[WhiteElo "2630"]
[BlackElo "2981"]
[TimeControl "180+1"]
[EndTime "8:26:50 PST"]
[Termination "evgchess5 won by resignation"]

1. d4 {[%clk 0:03:00.9]} 1... Nf6 {[%clk 0:02:58.9]} 2. Nf3 {[%clk 0:03:00.2]}
2... e6 {[%clk 0:02:59.1]} 3. e3 {[%clk 0:02:58.1]} 3... c5 {[%clk 0:02:57.1]}
4. Be2 {[%clk 0:02:59]} 4... b6 {[%clk 0:02:55.9]} 5. O-O {[%clk 0:02:58.8]}
5... Bb7 {[%clk 0:02:56.5]} 6. b3 {[%clk 0:02:54.5]} 6... d5 {[%clk 0:02:54.8]}
7. Bb2 {[%clk 0:02:54.6]} 7... Bd6 {[%clk 0:02:54.9]} 8. Nbd2 {[%clk 0:02:52.6]}
8... O-O {[%clk 0:02:53.4]} 9. c4 {[%clk 0:02:53.3]} 9... cxd4 {[%clk
0:02:51.9]} 10. exd4 {[%clk 0:02:43.5]} 10... Nc6 {[%clk 0:02:48.2]} 11. Ne5
{[%clk 0:02:41.9]} 11... Qe7 {[%clk 0:02:41.5]} 12. Ndf3 {[%clk 0:02:36.9]}
12... Rac8 {[%clk 0:02:39.6]} 13. Rc1 {[%clk 0:02:35.9]} 13... Rfd8 {[%clk
0:02:34.9]} 14. cxd5 {[%clk 0:02:35.5]} 14... Nxd5 {[%clk 0:02:33.5]} 15. Nxc6
{[%clk 0:02:14.9]} 15... Bxc6 {[%clk 0:02:30.2]} 16. Ba6 {[%clk 0:02:14.1]}
16... Bb7 {[%clk 0:02:29.7]} 17. Bxb7 {[%clk 0:02:13.8]} 17... Qxb7 {[%clk
0:02:29.1]} 18. Qe2 {[%clk 0:01:52.3]} 18... b5 {[%clk 0:02:14.8]} 19. g3 {[%clk
0:01:39.2]} 19... a6 {[%clk 0:02:13.3]} 20. Ng5 {[%clk 0:01:22.8]} 20... Nf6
{[%clk 0:02:07.7]} 21. Rfd1 {[%clk 0:01:18.8]} 21... Rxc1 {[%clk 0:01:59.6]} 22.
Rxc1 {[%clk 0:01:18.3]} 22... h6 {[%clk 0:01:56.5]} 23. Nf3 {[%clk 0:01:07.7]}
23... Rc8 {[%clk 0:01:56.4]} 24. Qd3 {[%clk 0:00:44.5]} 24... Rxc1+ {[%clk
0:01:46.6]} 25. Bxc1 {[%clk 0:00:43.5]} 25... Qc6 {[%clk 0:01:46.4]} 26. Bd2
{[%clk 0:00:36.9]} 26... Ne4 {[%clk 0:01:43.6]} 27. Be3 {[%clk 0:00:20.7]} 27...
Nc3 {[%clk 0:01:36.4]} 28. Ne5 {[%clk 0:00:15.6]} 28... Qc7 {[%clk 0:01:30.9]}
29. a4 {[%clk 0:00:08.8]} 29... Bxe5 {[%clk 0:01:19.3]} 30. dxe5 {[%clk
0:00:08.2]} 30... Qxe5 {[%clk 0:01:19]} 31. axb5 {[%clk 0:00:06.9]} 31... axb5
{[%clk 0:01:17.5]} 32. Qd8+ {[%clk 0:00:05.7]} 32... Kh7 {[%clk 0:01:16.6]} 33.
Qd3+ {[%clk 0:00:06.6]} 33... f5 {[%clk 0:01:15.5]} 34. Bd4 {[%clk 0:00:03.9]}
34... Qxd4 {[%clk 0:01:13.9]} 0-1

[Event "Early-Titled-Tuesday-Blitz-February-06-2024"]
[Site "Chess.com"]
[Date "2024.02.06"]
[Round "3"]
[White "Tesla37"]
[Black "Zarinur"]
[Result "1-0"]
[WhiteElo "2852"]
[BlackElo "2502"]
[TimeControl "180+1"]
[EndTime "8:26:51 PST"]
[Termination "Tesla37 won on time"]

1. e4 {[%clk 0:03:00.9]} 1... e5 {[%clk 0:02:54.5]} 2. Nf3 {[%clk 0:03:00.1]}
2... Nc6 {[%clk 0:02:49.5]} 3. g3 {[%clk 0:02:59.8]} 3... Nf6 {[%clk 0:02:45.9]}
4. d3 {[%clk 0:02:59.9]} 4... d5 {[%clk 0:02:44.8]} 5. exd5 {[%clk 0:03:00.1]}
5... Nxd5 {[%clk 0:02:45.7]} 6. Bg2 {[%clk 0:03:00.1]} 6... Bc5 {[%clk
0:02:43.5]} 7. O-O {[%clk 0:03:00.2]} 7... O-O {[%clk 0:02:41.7]} 8. Nxe5 {[%clk
0:02:59.3]} 8... Nxe5 {[%clk 0:02:10.9]} 9. d4 {[%clk 0:02:59.4]} 9... Bg4
{[%clk 0:02:02]} 10. f3 {[%clk 0:02:50.3]} 10... Be6 {[%clk 0:01:35.1]} 11. dxc5
{[%clk 0:02:48.4]} 11... Qe7 {[%clk 0:01:34.7]} 12. Qd4 {[%clk 0:02:27.7]} 12...
Nc6 {[%clk 0:01:31.6]} 13. Qf2 {[%clk 0:02:27.3]} 13... Rad8 {[%clk 0:01:13.1]}
14. Nd2 {[%clk 0:02:20.9]} 14... f5 {[%clk 0:00:52.6]} 15. f4 {[%clk 0:02:13]}
15... Ndb4 {[%clk 0:00:49.1]} 16. Nf3 {[%clk 0:02:07.5]} 16... Bd5 {[%clk
0:00:20]} 17. a3 {[%clk 0:02:01.7]} 17... Na6 {[%clk 0:00:19.2]} 18. b4 {[%clk
0:01:58.1]} 18... Bc4 {[%clk 0:00:09.5]} 19. Re1 {[%clk 0:01:55.9]} 19... Qf6
{[%clk 0:00:09.1]} 20. Be3 {[%clk 0:01:49.1]} 20... Ne7 {[%clk 0:00:05]} 21. Bd4
{[%clk 0:01:44.7]} 21... Qf7 {[%clk 0:00:02.8]} 22. Ne5 {[%clk 0:01:43.6]} 22...
Qe6 {[%clk 0:00:02.7]} 23. Nxc4 {[%clk 0:01:25.8]} 23... Qxc4 {[%clk 0:00:03.6]}
24. Bxg7 {[%clk 0:01:25.1]} 24... Kxg7 {[%clk 0:00:02.3]} 25. Rxe7+ {[%clk
0:01:24.7]} 25... Rf7 {[%clk 0:00:03]} 26. Rxf7+ {[%clk 0:01:22.3]} 26... Kxf7
{[%clk 0:00:03.4]} 27. Bxb7 {[%clk 0:01:21.6]} 27... Qc3 {[%clk 0:00:02.3]} 28.
Re1 {[%clk 0:01:17.8]} 28... Rd2 {[%clk 0:00:03]} 29. Qe3 {[%clk 0:01:16.2]}
29... Qxc2 {[%clk 0:00:02.6]} 30. Qe8+ {[%clk 0:01:13.4]} 30... Kg7 {[%clk
0:00:01.3]} 31. Re7+ {[%clk 0:01:11.9]} 31... Kh6 {[%clk 0:00:01.2]} 32. Qf8+
{[%clk 0:01:09.5]} 1-0

[Event "Early-Titled-Tuesday-Blitz-February-06-2024"]
[Site "Chess.com"]
[Date "2024.02.06"]
[Round "3"]
[White "19912131712118"]
[Black "Willhaven3"]
[Result "0-1"]
[WhiteElo "2424"]
[BlackElo "2628"]
[TimeControl "180+1"]
[EndTime "8:26:51 PST"]
[Termination "Willhaven3 won by resignation"]

1. e4 {[%clk 0:03:00.9]} 1... c5 {[%clk 0:03:00.1]} 2. Nf3 {[%clk 0:02:51.9]}
2... Nc6 {[%clk 0:03:00.4]} 3. d4 {[%clk 0:02:51.8]} 3... cxd4 {[%clk
0:03:00.4]} 4. Nxd4 {[%clk 0:02:50.5]} 4... Nf6 {[%clk 0:03:01.3]} 5. Nc3 {[%clk
0:02:50.2]} 5... d6 {[%clk 0:03:01.5]} 6. Bg5 {[%clk 0:02:48.8]} 6... e6 {[%clk
0:03:01.4]} 7. Qd2 {[%clk 0:02:48.2]} 7... a6 {[%clk 0:03:01.6]} 8. O-O-O {[%clk
0:02:46.7]} 8... h6 {[%clk 0:03:01.6]} 9. Bh4 {[%clk 0:02:39.2]} 9... Nxe4
{[%clk 0:03:01.2]} 10. Nxe4 {[%clk 0:02:34.9]} 10... Qxh4 {[%clk 0:03:00.4]} 11.
Nxc6 {[%clk 0:02:34.9]} 11... Qxe4 {[%clk 0:02:59.2]} 12. Nd4 {[%clk 0:02:28]}
12... Be7 {[%clk 0:02:58.8]} 13. Re1 {[%clk 0:02:13]} 13... Qd5 {[%clk
0:02:51.2]} 14. c4 {[%clk 0:02:12.1]} 14... Qc5 {[%clk 0:02:45]} 15. Nb3 {[%clk
0:02:10.9]} 15... Qc7 {[%clk 0:02:35.4]} 16. Kb1 {[%clk 0:02:03.2]} 16... e5
{[%clk 0:02:30.7]} 17. f4 {[%clk 0:01:59.2]} 17... O-O {[%clk 0:02:28.6]} 18.
Bd3 {[%clk 0:01:50.2]} 18... a5 {[%clk 0:02:19.2]} 19. Rhg1 {[%clk 0:01:43.1]}
19... a4 {[%clk 0:02:16.7]} 20. Nc1 {[%clk 0:01:37.5]} 20... f5 {[%clk
0:02:05.6]} 21. g4 {[%clk 0:01:24.1]} 21... fxg4 {[%clk 0:02:00.6]} 22. fxe5
{[%clk 0:01:21.7]} 22... dxe5 {[%clk 0:01:53.1]} 23. Ne2 {[%clk 0:00:46.4]}
23... a3 {[%clk 0:01:43.5]} 24. Nc3 {[%clk 0:00:38.1]} 24... Bc5 {[%clk
0:01:40.9]} 25. Nd5 {[%clk 0:00:24.7]} 25... Qd6 {[%clk 0:01:38.6]} 26. Rg2
{[%clk 0:00:17.9]} 26... axb2 {[%clk 0:01:36.2]} 27. Qxb2 {[%clk 0:00:18.1]}
27... Bd4 {[%clk 0:01:33.5]} 28. Qc2 {[%clk 0:00:16.5]} 28... Be6 {[%clk
0:01:30.3]} 29. Be4 {[%clk 0:00:11.6]} 29... Kh8 {[%clk 0:01:28.3]} 30. Qd3
{[%clk 0:00:05.2]} 30... b5 {[%clk 0:01:22.2]} 31. Rf1 {[%clk 0:00:03.1]} 31...
bxc4 {[%clk 0:01:21.7]} 32. Qxc4 {[%clk 0:00:04]} 32... Rfc8 {[%clk 0:01:13.5]}
33. Qb3 {[%clk 0:00:01.8]} 33... Rab8 {[%clk 0:01:13.3]} 0-1

[Event "Early-Titled-Tuesday-Blitz-February-06-2024"]
[Site "Chess.com"]
[Date "2024.02.06"]
[Round "3"]
[White "ideika"]
[Black "DonMicheleCorleone"]
[Result "0-1"]
[WhiteElo "2122"]
[BlackElo "2388"]
[TimeControl "180+1"]
[EndTime "8:26:55 PST"]
[Termination "DonMicheleCorleone won by checkmate"]

1. e4 {[%clk 0:03:00.9]} 1... Nf6 {[%clk 0:02:56.1]} 2. e5 {[%clk 0:03:00.8]}
2... Nd5 {[%clk 0:02:56]} 3. d4 {[%clk 0:03:01.2]} 3... d6 {[%clk 0:02:56.2]} 4.
f4 {[%clk 0:03:00.5]} 4... dxe5 {[%clk 0:02:53.7]} 5. fxe5 {[%clk 0:03:01.4]}
5... Nd7 {[%clk 0:02:51.6]} 6. c3 {[%clk 0:03:00.7]} 6... e6 {[%clk 0:02:49.6]}
7. Nf3 {[%clk 0:02:59.9]} 7... Be7 {[%clk 0:02:49.7]} 8. Bd3 {[%clk 0:03:00]}
8... c5 {[%clk 0:02:49.3]} 9. h4 {[%clk 0:02:50]} 9... Qb6 {[%clk 0:02:48.9]}
10. Ng5 {[%clk 0:02:29.8]} 10... Nf8 {[%clk 0:02:44.7]} 11. Qf3 {[%clk
0:02:14.1]} 11... Bxg5 {[%clk 0:02:42.5]} 12. hxg5 {[%clk 0:02:08.1]} 12... cxd4
{[%clk 0:02:39.8]} 13. g6 {[%clk 0:02:05.2]} 13... Nxg6 {[%clk 0:02:36.2]} 14.
Bxg6 {[%clk 0:02:04.8]} 14... fxg6 {[%clk 0:02:36.2]} 15. Qd3 {[%clk 0:01:39.6]}
15... dxc3 {[%clk 0:02:28.6]} 16. Nxc3 {[%clk 0:01:22.2]} 16... O-O {[%clk
0:02:12.6]} 17. Qh3 {[%clk 0:00:47.3]} 17... Qf2+ {[%clk 0:02:05.6]} 18. Kd1
{[%clk 0:00:43]} 18... Nxc3+ {[%clk 0:02:03.3]} 19. bxc3 {[%clk 0:00:34.4]}
19... h5 {[%clk 0:02:03.4]} 20. Be3 {[%clk 0:00:32.1]} 20... Qb2 {[%clk
0:02:00.1]} 21. Rc1 {[%clk 0:00:26.6]} 21... Bd7 {[%clk 0:01:59.8]} 22. Qg3
{[%clk 0:00:20.6]} 22... Ba4+ {[%clk 0:01:40.6]} 23. Ke1 {[%clk 0:00:19.8]}
23... Bc2 {[%clk 0:00:56]} 24. Qh3 {[%clk 0:00:12.4]} 24... Bf5 {[%clk 0:00:53]}
25. Qg3 {[%clk 0:00:11.5]} 25... Bg4 {[%clk 0:00:52.1]} 26. Bf4 {[%clk 0:00:06]}
26... Qe2# {[%clk 0:00:51.5]} 0-1

[Event "Early-Titled-Tuesday-Blitz-February-06-2024"]
[Site "Chess.com"]
[Date "2024.02.06"]
[Round "3"]
[White "NikitaShnadrygin"]
[Black "ImportedItalianMaple"]
[Result "1/2-1/2"]
[WhiteElo "2693"]
[BlackElo "2479"]
[TimeControl "180+1"]
[EndTime "8:26:58 PST"]
[Termination "Game drawn by repetition"]

1. e4 {[%clk 0:02:59]} 1... g6 {[%clk 0:02:59.7]} 2. d4 {[%clk 0:02:57.9]} 2...
Bg7 {[%clk 0:03:00.1]} 3. Nc3 {[%clk 0:02:57.5]} 3... d5 {[%clk 0:03:00.5]} 4.
exd5 {[%clk 0:02:52.2]} 4... Nf6 {[%clk 0:03:00.9]} 5. Bc4 {[%clk 0:02:47]} 5...
Nbd7 {[%clk 0:03:01.2]} 6. Nge2 {[%clk 0:02:43.6]} 6... Nb6 {[%clk 0:03:01.1]}
7. Bb3 {[%clk 0:02:44]} 7... a5 {[%clk 0:02:53.6]} 8. a3 {[%clk 0:02:38.2]} 8...
a4 {[%clk 0:02:52.3]} 9. Ba2 {[%clk 0:02:38.1]} 9... Nfxd5 {[%clk 0:02:51.1]}
10. Nxd5 {[%clk 0:02:36.6]} 10... Nxd5 {[%clk 0:02:51.6]} 11. O-O {[%clk
0:02:34.1]} 11... O-O {[%clk 0:02:51.6]} 12. c4 {[%clk 0:02:32.2]} 12... Nf6
{[%clk 0:02:47.5]} 13. h3 {[%clk 0:02:28]} 13... c5 {[%clk 0:02:35.7]} 14. Be3
{[%clk 0:02:10.1]} 14... cxd4 {[%clk 0:02:33.2]} 15. Nxd4 {[%clk 0:02:09.4]}
15... b6 {[%clk 0:01:56.1]} 16. Qf3 {[%clk 0:02:00.8]} 16... Ba6 {[%clk
0:01:42.8]} 17. Rfd1 {[%clk 0:01:57.5]} 17... Qc7 {[%clk 0:01:36]} 18. Nb5
{[%clk 0:01:48.8]} 18... Bxb5 {[%clk 0:01:35.4]} 19. cxb5 {[%clk 0:01:49]} 19...
Nd7 {[%clk 0:01:21.1]} 20. Rac1 {[%clk 0:01:10.8]} 20... Nc5 {[%clk 0:01:20.7]}
21. Rd2 {[%clk 0:00:41.2]} 21... e6 {[%clk 0:01:16.6]} 22. Rdc2 {[%clk
0:00:35.6]} 22... Ra5 {[%clk 0:01:04.1]} 23. Bxc5 {[%clk 0:00:33]} 23... bxc5
{[%clk 0:01:04.3]} 24. Rxc5 {[%clk 0:00:33.9]} 24... Qb8 {[%clk 0:01:01.4]} 25.
Qe2 {[%clk 0:00:26.3]} 25... Bd4 {[%clk 0:00:58.2]} 26. R5c4 {[%clk 0:00:19.2]}
26... Bf6 {[%clk 0:00:55.6]} 27. Rc5 {[%clk 0:00:13.6]} 27... Bd4 {[%clk
0:00:52.2]} 28. R5c4 {[%clk 0:00:13.5]} 28... Bf6 {[%clk 0:00:52.6]} 29. Rc5
{[%clk 0:00:06.4]} 29... Bd4 {[%clk 0:00:51.7]} 1/2-1/2

[Event "Early-Titled-Tuesday-Blitz-February-06-2024"]
[Site "Chess.com"]
[Date "2024.02.06"]
[Round "3"]
[White "mkllnd1517"]
[Black "stratacticos"]
[Result "1-0"]
[WhiteElo "2364"]
[BlackElo "2041"]
[TimeControl "180+1"]
[EndTime "8:26:58 PST"]
[Termination "mkllnd1517 won by resignation"]

1. Nf3 {[%clk 0:03:00.9]} 1... c5 {[%clk 0:02:58]} 2. c4 {[%clk 0:03:00.6]} 2...
Nc6 {[%clk 0:02:57.5]} 3. Nc3 {[%clk 0:03:01]} 3... Nf6 {[%clk 0:02:55.7]} 4. d4
{[%clk 0:03:00.9]} 4... Nxd4 {[%clk 0:02:54.5]} 5. Nxd4 {[%clk 0:03:01.8]} 5...
cxd4 {[%clk 0:02:54.7]} 6. Qxd4 {[%clk 0:03:02.1]} 6... g6 {[%clk 0:02:54.4]} 7.
e4 {[%clk 0:03:02.1]} 7... Bg7 {[%clk 0:02:53.8]} 8. Be2 {[%clk 0:03:01.3]} 8...
O-O {[%clk 0:02:53.1]} 9. O-O {[%clk 0:02:59.9]} 9... d6 {[%clk 0:02:52.7]} 10.
h3 {[%clk 0:02:53.1]} 10... Be6 {[%clk 0:02:51.9]} 11. Qd3 {[%clk 0:02:37.4]}
11... Nd7 {[%clk 0:02:49.3]} 12. b3 {[%clk 0:02:26.5]} 12... Rc8 {[%clk
0:02:47.8]} 13. Be3 {[%clk 0:02:23.4]} 13... b5 {[%clk 0:02:45.5]} 14. Nxb5
{[%clk 0:02:09.9]} 14... Bxa1 {[%clk 0:02:42.9]} 15. Rxa1 {[%clk 0:02:09.8]}
15... a6 {[%clk 0:02:42.8]} 16. Nd4 {[%clk 0:02:09.5]} 16... Nc5 {[%clk
0:02:40.6]} 17. Qc2 {[%clk 0:02:02.8]} 17... Bd7 {[%clk 0:02:37.6]} 18. Bh6
{[%clk 0:02:02.2]} 18... Re8 {[%clk 0:02:35.1]} 19. Rd1 {[%clk 0:01:39.6]} 19...
e5 {[%clk 0:02:34.2]} 20. Nf3 {[%clk 0:01:34.6]} 20... Bc6 {[%clk 0:02:10.1]}
21. Nd2 {[%clk 0:01:34.6]} 21... Qh4 {[%clk 0:02:07.4]} 22. Be3 {[%clk
0:01:25.3]} 22... Bxe4 {[%clk 0:02:04.5]} 23. Nxe4 {[%clk 0:01:25.4]} 23... Qxe4
{[%clk 0:02:03.6]} 24. Qd2 {[%clk 0:01:17.7]} 24... Qc6 {[%clk 0:01:57.8]} 25.
Qxd6 {[%clk 0:01:10.3]} 25... Qxd6 {[%clk 0:01:57.2]} 26. Rxd6 {[%clk
0:01:11.2]} 26... Ne4 {[%clk 0:01:53]} 27. Rxa6 {[%clk 0:01:10]} 27... Rcd8
{[%clk 0:01:52.5]} 28. c5 {[%clk 0:01:00.9]} 28... Nc3 {[%clk 0:01:49]} 29. Bc4
{[%clk 0:01:00.8]} 29... Kg7 {[%clk 0:01:42.8]} 30. b4 {[%clk 0:00:55]} 30...
Ra8 {[%clk 0:01:39.3]} 31. Rxa8 {[%clk 0:00:35.7]} 31... Rxa8 {[%clk 0:01:37.7]}
32. c6 {[%clk 0:00:32.5]} 32... Nxa2 {[%clk 0:01:31.9]} 33. b5 {[%clk
0:00:30.4]} 33... Nb4 {[%clk 0:01:25.2]} 34. c7 {[%clk 0:00:29.3]} 34... Nc2
{[%clk 0:01:09.4]} 35. b6 {[%clk 0:00:24.6]} 35... Nxe3 {[%clk 0:01:06]} 36.
fxe3 {[%clk 0:00:25.5]} 36... Rc8 {[%clk 0:00:56.4]} 37. Ba6 {[%clk 0:00:25.7]}
1-0

[Event "Early-Titled-Tuesday-Blitz-February-06-2024"]
[Site "Chess.com"]
[Date "2024.02.06"]
[Round "3"]
[White "toninhojit"]
[Black "artin10862"]
[Result "0-1"]
[WhiteElo "2509"]
[BlackElo "2950"]
[TimeControl "180+1"]
[EndTime "8:26:59 PST"]
[Termination "artin10862 won by resignation"]

1. d4 {[%clk 0:02:53.3]} 1... d5 {[%clk 0:02:59.5]} 2. c4 {[%clk 0:02:53.2]}
2... dxc4 {[%clk 0:02:59.9]} 3. Nf3 {[%clk 0:02:52.5]} 3... a6 {[%clk
0:02:58.4]} 4. a4 {[%clk 0:02:49]} 4... e6 {[%clk 0:02:50.4]} 5. e3 {[%clk
0:02:48.5]} 5... c5 {[%clk 0:02:49.8]} 6. Bxc4 {[%clk 0:02:47.5]} 6... cxd4
{[%clk 0:02:49.8]} 7. exd4 {[%clk 0:02:47.2]} 7... Nf6 {[%clk 0:02:49.7]} 8. O-O
{[%clk 0:02:47.1]} 8... Be7 {[%clk 0:02:48.7]} 9. Nc3 {[%clk 0:02:45.9]} 9...
O-O {[%clk 0:02:47.4]} 10. Bg5 {[%clk 0:02:41.1]} 10... Nc6 {[%clk 0:02:39.9]}
11. Qd3 {[%clk 0:02:34.7]} 11... h6 {[%clk 0:02:36.3]} 12. Bh4 {[%clk
0:02:34.5]} 12... Nh5 {[%clk 0:02:36.4]} 13. Bxe7 {[%clk 0:02:32.8]} 13... Nxe7
{[%clk 0:02:36.1]} 14. Bb3 {[%clk 0:02:28.2]} 14... b6 {[%clk 0:02:27.7]} 15.
Bc2 {[%clk 0:02:25.8]} 15... Nf6 {[%clk 0:02:26.2]} 16. Ne5 {[%clk 0:02:26]}
16... Bb7 {[%clk 0:02:25.1]} 17. Ng4 {[%clk 0:02:26.3]} 17... Ng6 {[%clk
0:02:08.5]} 18. Qg3 {[%clk 0:02:06.9]} 18... Nh5 {[%clk 0:01:59]} 19. Qe3 {[%clk
0:01:48.7]} 19... Nhf4 {[%clk 0:01:57.8]} 20. f3 {[%clk 0:01:43.5]} 20... Qg5
{[%clk 0:01:49.1]} 21. g3 {[%clk 0:01:26.5]} 21... Nh3+ {[%clk 0:01:48]} 22. Kg2
{[%clk 0:01:26.7]} 22... Qxg4 {[%clk 0:01:47.4]} 23. Be4 {[%clk 0:01:10.1]}
23... Bxe4 {[%clk 0:01:34.9]} 24. Nxe4 {[%clk 0:01:03.5]} 24... Qh5 {[%clk
0:01:34.8]} 25. g4 {[%clk 0:00:47.9]} 25... Nhf4+ {[%clk 0:01:30.7]} 26. Kh1
{[%clk 0:00:46.4]} 26... Qd5 {[%clk 0:01:25.2]} 27. Nc3 {[%clk 0:00:44.4]} 27...
Qd7 {[%clk 0:01:18.5]} 28. h4 {[%clk 0:00:44.7]} 28... Nd5 {[%clk 0:01:18]} 29.
Qf2 {[%clk 0:00:42.6]} 29... Nxc3 {[%clk 0:01:10.9]} 30. bxc3 {[%clk 0:00:43.5]}
30... Rac8 {[%clk 0:01:11.1]} 31. h5 {[%clk 0:00:44]} 31... Nf4 {[%clk
0:01:10.8]} 32. Qg3 {[%clk 0:00:40.5]} 32... Ne2 {[%clk 0:01:10.2]} 33. Qg2
{[%clk 0:00:38.7]} 33... Nxc3 {[%clk 0:01:09.9]} 34. g5 {[%clk 0:00:39.2]} 34...
hxg5 {[%clk 0:01:09]} 35. Qxg5 {[%clk 0:00:37.3]} 35... Qd5 {[%clk 0:01:08.4]}
36. Qg4 {[%clk 0:00:36.4]} 36... Qf5 {[%clk 0:01:07.9]} 37. Qh4 {[%clk
0:00:36.8]} 37... Nd5 {[%clk 0:01:07.5]} 38. Rg1 {[%clk 0:00:32.8]} 38... Qxf3+
{[%clk 0:01:07.1]} 39. Kh2 {[%clk 0:00:33]} 39... Rc2+ {[%clk 0:01:06.8]} 0-1

[Event "Early-Titled-Tuesday-Blitz-February-06-2024"]
[Site "Chess.com"]
[Date "2024.02.06"]
[Round "3"]
[White "Ruchess27"]
[Black "PawnEatingZombie"]
[Result "1-0"]
[WhiteElo "2455"]
[BlackElo "2206"]
[TimeControl "180+1"]
[EndTime "8:27:01 PST"]
[Termination "Ruchess27 won by resignation"]

1. d4 {[%clk 0:03:00.9]} 1... Nf6 {[%clk 0:02:58.7]} 2. c4 {[%clk 0:03:01.5]}
2... g6 {[%clk 0:02:59.3]} 3. Nf3 {[%clk 0:03:01.7]} 3... Bg7 {[%clk 0:02:59.5]}
4. g3 {[%clk 0:03:02.5]} 4... O-O {[%clk 0:02:59.8]} 5. Bg2 {[%clk 0:03:03.2]}
5... d6 {[%clk 0:03:00.4]} 6. O-O {[%clk 0:03:01.8]} 6... Nc6 {[%clk 0:03:00.9]}
7. Nc3 {[%clk 0:03:01.9]} 7... e5 {[%clk 0:03:00.4]} 8. d5 {[%clk 0:03:00.1]}
8... Ne7 {[%clk 0:03:00.4]} 9. e4 {[%clk 0:03:00]} 9... Nd7 {[%clk 0:02:58]} 10.
Ne1 {[%clk 0:02:59.5]} 10... h6 {[%clk 0:02:57.7]} 11. Nd3 {[%clk 0:02:58.9]}
11... f5 {[%clk 0:02:56.4]} 12. f4 {[%clk 0:02:57.8]} 12... exf4 {[%clk
0:02:47.4]} 13. Nxf4 {[%clk 0:02:57]} 13... Ne5 {[%clk 0:02:36.2]} 14. Qe2
{[%clk 0:02:42.4]} 14... c6 {[%clk 0:02:00.2]} 15. Be3 {[%clk 0:02:30.3]} 15...
Qe8 {[%clk 0:01:58.5]} 16. Rae1 {[%clk 0:02:21.8]} 16... Ng4 {[%clk 0:01:58]}
17. Bd2 {[%clk 0:02:07.3]} 17... Bd4+ {[%clk 0:01:50.4]} 18. Kh1 {[%clk
0:02:07.1]} 18... g5 {[%clk 0:01:49.2]} 19. exf5 {[%clk 0:01:45.7]} 19... Bxf5
{[%clk 0:01:11]} 20. Ne6 {[%clk 0:01:24.1]} 20... Qh5 {[%clk 0:00:50.1]} 21. h3
{[%clk 0:01:15.5]} 21... Bd3 {[%clk 0:00:05.6]} 22. Qxg4 {[%clk 0:00:54.6]}
22... Qxg4 {[%clk 0:00:04]} 23. Rxf8+ {[%clk 0:00:50.5]} 23... Rxf8 {[%clk
0:00:02.4]} 24. hxg4 {[%clk 0:00:51.4]} 24... Bf2 {[%clk 0:00:01.1]} 1-0

[Event "Early-Titled-Tuesday-Blitz-February-06-2024"]
[Site "Chess.com"]
[Date "2024.02.06"]
[Round "3"]
[White "Akewjon"]
[Black "nihalsarin"]
[Result "0-1"]
[WhiteElo "2758"]
[BlackElo "3122"]
[TimeControl "180+1"]
[EndTime "8:27:05 PST"]
[Termination "nihalsarin won on time"]

1. Nf3 {[%clk 0:02:57]} 1... a6 {[%clk 0:02:59.2]} 2. c4 {[%clk 0:02:56.1]} 2...
b5 {[%clk 0:02:56.3]} 3. e4 {[%clk 0:02:51.3]} 3... Bb7 {[%clk 0:02:51.8]} 4.
Qc2 {[%clk 0:02:36]} 4... Nf6 {[%clk 0:02:49.9]} 5. e5 {[%clk 0:02:33.6]} 5...
Bxf3 {[%clk 0:02:50.8]} 6. gxf3 {[%clk 0:02:27.2]} 6... Nh5 {[%clk 0:02:51.7]}
7. d4 {[%clk 0:02:25.4]} 7... Nc6 {[%clk 0:02:41.6]} 8. Be3 {[%clk 0:02:24.2]}
8... e6 {[%clk 0:02:36.8]} 9. cxb5 {[%clk 0:02:18.9]} 9... axb5 {[%clk
0:02:36.1]} 10. Bxb5 {[%clk 0:02:19.8]} 10... Nb4 {[%clk 0:02:36.2]} 11. Qb3
{[%clk 0:01:34.5]} 11... Rb8 {[%clk 0:02:34.1]} 12. Qa4 {[%clk 0:01:14.1]} 12...
Nd5 {[%clk 0:02:08.5]} 13. Nd2 {[%clk 0:01:09]} 13... c6 {[%clk 0:02:03.9]} 14.
Bc4 {[%clk 0:01:05.7]} 14... Nxe3 {[%clk 0:01:40.9]} 15. fxe3 {[%clk 0:01:04.9]}
15... Rxb2 {[%clk 0:01:41.7]} 16. Ke2 {[%clk 0:00:37.4]} 16... Bb4 {[%clk
0:01:34.7]} 17. Rad1 {[%clk 0:00:34]} 17... O-O {[%clk 0:01:31.1]} 18. Bb3
{[%clk 0:00:29]} 18... Qb6 {[%clk 0:01:12]} 19. Kd3 {[%clk 0:00:20.6]} 19... Qb7
{[%clk 0:01:06.4]} 20. Nc4 {[%clk 0:00:11.7]} 20... Rf2 {[%clk 0:01:06.9]} 21.
a3 {[%clk 0:00:11.6]} 21... Be7 {[%clk 0:00:58.2]} 22. Bc2 {[%clk 0:00:06.3]}
22... c5 {[%clk 0:00:52]} 23. Rb1 {[%clk 0:00:01.6]} 23... Nf4+ {[%clk
0:00:44.6]} 0-1

[Event "Early-Titled-Tuesday-Blitz-February-06-2024"]
[Site "Chess.com"]
[Date "2024.02.06"]
[Round "3"]
[White "ChessSwole"]
[Black "DeArron_Fox"]
[Result "0-1"]
[WhiteElo "2677"]
[BlackElo "2485"]
[TimeControl "180+1"]
[EndTime "8:27:05 PST"]
[Termination "DeArron_Fox won by resignation"]

1. e4 {[%clk 0:03:00.9]} 1... c5 {[%clk 0:03:00]} 2. Nc3 {[%clk 0:03:00.4]} 2...
e6 {[%clk 0:03:00.2]} 3. d4 {[%clk 0:03:00.3]} 3... cxd4 {[%clk 0:03:00.5]} 4.
Qxd4 {[%clk 0:03:01.2]} 4... Nc6 {[%clk 0:03:01]} 5. Qd3 {[%clk 0:03:01.5]} 5...
Nf6 {[%clk 0:03:00.7]} 6. Bf4 {[%clk 0:03:01.5]} 6... Bc5 {[%clk 0:02:35.5]} 7.
O-O-O {[%clk 0:02:41.3]} 7... O-O {[%clk 0:02:31.3]} 8. f3 {[%clk 0:02:35.5]}
8... a6 {[%clk 0:02:00.7]} 9. g4 {[%clk 0:02:32.2]} 9... b5 {[%clk 0:01:59.1]}
10. h4 {[%clk 0:02:23.7]} 10... Qa5 {[%clk 0:01:44.8]} 11. Kb1 {[%clk
0:02:08.7]} 11... Bb7 {[%clk 0:01:31]} 12. h5 {[%clk 0:02:03.5]} 12... d5 {[%clk
0:01:30.9]} 13. e5 {[%clk 0:01:52.4]} 13... Nd7 {[%clk 0:01:30.4]} 14. g5 {[%clk
0:01:06.3]} 14... Nb4 {[%clk 0:00:45.4]} 15. Qe2 {[%clk 0:00:59.3]} 15... d4
{[%clk 0:00:45.5]} 16. a3 {[%clk 0:00:52.7]} 16... dxc3 {[%clk 0:00:45.5]} 17.
Rxd7 {[%clk 0:00:49.4]} 17... cxb2 {[%clk 0:00:36.2]} 18. c3 {[%clk 0:00:38.1]}
18... Nd5 {[%clk 0:00:30.1]} 19. Bd2 {[%clk 0:00:31.5]} 19... Qxa3 {[%clk
0:00:26.5]} 20. Kc2 {[%clk 0:00:25.5]} 20... Qb3+ {[%clk 0:00:22.3]} 21. Kb1
{[%clk 0:00:23.9]} 21... Qa3 {[%clk 0:00:19]} 22. Kc2 {[%clk 0:00:23.5]} 22...
Qa2 {[%clk 0:00:18.8]} 0-1